fUSD/lending_fUSD_20250208
["ID","MTS","AMOUNT","RATE_DAILY","PERIOD"]
[352297433,1739030962359,-1209.71,0.0001027,2]
[352297434,1739030962392,-715.31,0.0001027,2]
[352297435,1739030962427,-500.0,0.0001027,2]
[352297436,1739030962459,-500.0,0.0001027,2]
[352297437,1739030962494,-417.91,0.00010271,2]
[352297438,1739030962528,-500.0,0.00010271,2]
[352297439,1739030962563,-602.05,0.00010271,2]
[352297440,1739030962599,-500.0,0.00010271,2]
[352297441,1739030962636,-500.0,0.00010271,2]
[352297442,1739030962673,-621.69,0.00010271,2]
[352297443,1739030962711,-500.0,0.00010271,2]
[352297444,1739030963227,-642.07,0.00010271,2]
[352297445,1739030963265,-898.44,0.00010271,2]
[352297446,1739030963300,-774.39,0.00010271,2]
[352297447,1739030963332,-500.0,0.00010271,2]
[352297448,1739030963371,-500.0,0.000103,3]
[352297449,1739030963406,-800.0,0.000104,3]
[352297450,1739030963439,-802.19,0.00010405,2]
[352297451,1739030963472,-742.6,0.00010405,2]
[352297452,1739030963506,-1336.88,0.00010405,2]
[352297453,1739030963540,-1153.22,0.00010405,2]
[352297454,1739030963575,-1569.86,0.00010405,2]
[352297455,1739030963608,-2381.36,0.00010405,2]
[352297456,1739030963641,-500.0,0.00010405,2]
[352297457,1739030963675,-1481.74,0.00010405,2]
[352297458,1739030963710,-1482.26,0.00010405,2]
[352297459,1739030963746,-482.54,0.00010406,2]
[352297460,1739030963780,-500.0,0.00010406,2]
[352297461,1739030963814,-500.0,0.00010406,2]
[352297462,1739030963849,-500.0,0.00010406,2]
[352297463,1739030963884,-500.0,0.00010406,2]
[352297464,1739030963918,-500.0,0.00010406,2]
[352297465,1739030963951,-500.0,0.00010406,2]
[352297466,1739030963985,-500.0,0.00010406,2]
[352297467,1739030964016,-500.0,0.00010406,2]
[352297468,1739030964047,-500.0,0.00010406,2]
[352297469,1739030964078,-500.0,0.00010406,2]
[352297470,1739030964109,-677.68,0.00010406,2]
[352297471,1739030964140,-500.0,0.00010406,2]
[352297472,1739030964172,-858.21,0.00010406,2]
[352297473,1739030964205,-1067.51,0.00010406,2]
[352297474,1739030964240,-500.0,0.00010406,2]
[352297475,1739030964273,-1791.43,0.00010406,2]
[352297476,1739030964305,-500.0,0.00010406,2]
[352297477,1739030964336,-500.0,0.00010406,2]
[352297478,1739030964373,-1005.42,0.00010406,2]
[352297479,1739030964404,-526.06,0.00010406,2]
[352297480,1739030964436,-500.0,0.00010406,2]
[352297481,1739030964470,-1557.23,0.00010406,2]
[352297482,1739030964503,-500.0,0.00010406,2]
[352297483,1739030964538,-500.0,0.00010406,2]
[352297484,1739030964589,-786.32,0.00010406,2]
[352297485,1739030964626,-1364.07,0.00010406,2]
[352297486,1739030964663,-500.0,0.00010406,2]
[352297487,1739030964699,-500.0,0.00010406,2]
[352297488,1739030964736,-500.0,0.00010406,2]
[352297489,1739030964772,-500.0,0.00010406,2]
[352297490,1739030964808,-1086.9,0.00010406,2]
[352297491,1739030964842,-500.0,0.00010406,2]
[352297492,1739030964877,-666.35,0.00010406,2]
[352297493,1739030964914,-500.0,0.00010406,2]
[352297494,1739030964948,-500.0,0.00010406,2]
[352297495,1739030964982,-500.0,0.00010406,2]
[352297496,1739030965018,-1801.26,0.00010406,2]
[352297497,1739030965054,-1515.2,0.00010406,2]
[352297498,1739030965089,-563.8,0.00010406,2]
[352297499,1739030965125,-500.0,0.00010406,2]
[352297500,1739030965161,-500.0,0.00010406,2]
[352297501,1739030965199,-500.0,0.00010406,2]
[352297502,1739030965237,-500.0,0.00010406,2]
[352297503,1739030965272,-876.69,0.00010406,2]
[352297504,1739030965307,-500.0,0.00010406,2]
[352297505,1739030965341,-500.0,0.00010406,2]
[352297506,1739030965380,-500.0,0.00010406,2]
[352297507,1739030965416,-1669.42,0.00010406,2]
[352297508,1739030965453,-500.0,0.00010406,2]
[352297509,1739030965492,-500.0,0.00010406,2]
[352297510,1739030965530,-500.0,0.00010406,2]
[352297511,1739030965568,-889.35,0.00010406,2]
[352297512,1739030965606,-500.0,0.00010407,2]
[352297513,1739030965645,-792.61,0.00010407,2]
[352297514,1739030965684,-586.18,0.00010407,2]
[352297515,1739030965722,-1021.29,0.00010407,2]
[352297516,1739030965761,-552.47,0.00010407,2]
[352297517,1739030965800,-584.29,0.00010407,2]
[352297518,1739030965838,-1431.9,0.00010407,2]
[352297519,1739030965876,-3456.55,0.00010407,2]
[352297520,1739030965914,-500.0,0.00010407,2]
[352297521,1739030965953,-500.0,0.00010407,2]
[352297522,1739030965991,-500.0,0.00010407,2]
[352297523,1739030966028,-693.9,0.00010407,2]
[352297524,1739030966066,-835.82,0.00010407,2]
[352297525,1739030966109,-982.31,0.00010407,2]
[352297526,1739030966145,-1141.16,0.00010407,2]
[352297527,1739030966181,-518.36,0.00010407,2]
[352297528,1739030966214,-1000.0,0.00010407,2]
[352297529,1739030966250,-911.43,0.00010407,2]
[352297530,1739030966283,-1096.95,0.00010407,2]
[352297531,1739030966317,-1291.89,0.00010407,2]
[352297532,1739030966353,-1209.71,0.00010407,2]
[352297533,1739030966391,-715.31,0.00010407,2]
[352297534,1739030966428,-500.0,0.00010408,2]
[352297535,1739030966462,-602.05,0.00010408,2]
[352297536,1739030966496,-500.0,0.00010408,2]
[352297537,1739030966529,-500.0,0.00010408,2]
[352297538,1739030966564,-621.69,0.00010408,2]
[352297539,1739030966597,-642.07,0.00010408,2]
[352297540,1739030966633,-898.44,0.00010408,2]
[352297541,1739030966668,-774.39,0.00010408,2]
[352297542,1739030966705,-500.0,0.00010408,2]
[352297543,1739030966742,-1003.5,0.00010462,2]
[352297544,1739030966778,-1100.0,0.000105,3]
[352297545,1739030966813,-802.19,0.00010542,2]
[352297546,1739030966847,-742.6,0.00010542,2]
[352297547,1739030966881,-1336.88,0.00010542,2]
[352297548,1739030966915,-1153.22,0.00010542,2]
[352297549,1739030966949,-1569.86,0.00010542,2]
[352297550,1739030966981,-2381.36,0.00010542,2]
[352297551,1739030967014,-1481.74,0.00010542,2]
[352297552,1739030967047,-1482.26,0.00010542,2]
[352297553,1739030967080,-500.0,0.00010543,2]
[352297554,1739030967115,-500.0,0.00010543,2]
[352297555,1739030967149,-500.0,0.00010543,2]
[352297556,1739030967183,-500.0,0.00010543,2]
[352297557,1739030967220,-251.82,0.00010543,2]
[352297558,1739030967254,-677.68,0.00010543,2]
[352297559,1739030967288,-500.0,0.00010543,2]
[352297560,1739030967322,-858.21,0.00010543,2]
[352297561,1739030967356,-1067.51,0.00010543,2]
[352297562,1739030967390,-1791.43,0.00010543,2]
[352297563,1739030967423,-500.0,0.00010543,2]
[352297564,1739030967457,-500.0,0.00010543,2]
[352297565,1739030967492,-1005.42,0.00010543,2]
[352297566,1739030967526,-1557.23,0.00010543,2]
[352297567,1739030967562,-500.0,0.00010543,2]
[352297568,1739030967597,-500.0,0.00010543,2]
[352297569,1739030967848,-786.32,0.00010543,2]
[352297570,1739030967886,-1364.07,0.00010543,2]
[352297571,1739030967922,-500.0,0.00010543,2]
[352297572,1739030967959,-500.0,0.00010543,2]
[352297573,1739030967996,-500.0,0.00010543,2]
[352297574,1739030968030,-1086.9,0.00010543,2]
[352297575,1739030968064,-500.0,0.00010543,2]
[352297576,1739030968101,-666.35,0.00010543,2]
[352297577,1739030968135,-500.0,0.00010543,2]
[352297578,1739030968168,-500.0,0.00010543,2]
[352297579,1739030968202,-500.0,0.00010543,2]
[352297580,1739030968236,-1801.26,0.00010543,2]
[352297581,1739030968269,-1515.2,0.00010543,2]
[352297582,1739030968302,-500.0,0.00010543,2]
[352297583,1739030968335,-500.0,0.00010543,2]
[352297584,1739030968377,-500.0,0.00010543,2]
[352297585,1739030968412,-876.69,0.00010543,2]
[352297586,1739030968446,-500.0,0.00010543,2]
[352297587,1739030968478,-500.0,0.00010543,2]
[352297588,1739030968511,-185.03,0.00010543,2]
[352297589,1739030968546,-1669.42,0.00010543,2]
[352297590,1739030968582,-500.0,0.00010543,2]
[352297591,1739030968618,-282.0096388,0.00010543,2]
[352297592,1739030968654,-500.0,0.00010543,2]
[352297593,1739030968688,-889.35,0.00010543,2]
[352297594,1739030968725,-500.0,0.00010544,2]
[352297595,1739030968759,-792.61,0.00010544,2]
[352297596,1739030968796,-1021.29,0.00010544,2]
[352297597,1739030968831,-552.47,0.00010544,2]
[352297598,1739030968866,-584.29,0.00010544,2]
[352297599,1739030968903,-1431.9,0.00010544,2]
[352297600,1739030968938,-3456.55,0.00010544,2]
[352297601,1739030968972,-510.1956844,0.00010544,2]
[352297602,1739030969006,-500.0,0.00010544,2]
[352297603,1739030969039,-693.9,0.00010544,2]
[352297604,1739030969071,-835.82,0.00010544,2]
[352297605,1739030969105,-982.31,0.00010544,2]
[352297606,1739030969138,-1141.16,0.00010544,2]
[352297607,1739030969170,-518.36,0.00010544,2]
[352297608,1739030969206,-1000.0,0.00010544,2]
[352297609,1739030969242,-911.43,0.00010544,2]
[352297610,1739030969278,-1096.95,0.00010544,2]
[352297611,1739030969314,-1291.89,0.00010544,2]
[352297612,1739030969349,-1209.71,0.00010544,2]
[352297613,1739030969385,-715.31,0.00010544,2]
[352297614,1739030969419,-500.0,0.00010545,2]
[352297615,1739030969456,-602.05,0.00010545,2]
[352297616,1739030969496,-500.0,0.00010545,2]
[352297617,1739030969532,-500.0,0.00010545,2]
[352297618,1739030969568,-621.69,0.00010545,2]
[352297619,1739030969604,-642.07,0.00010545,2]
[352297620,1739030969638,-898.44,0.00010545,2]
[352297621,1739030969675,-774.39,0.00010545,2]
[352297622,1739030969712,-500.0,0.00010545,2]
[352297623,1739030969750,-1300.0,0.000106,3]
[352297624,1739030969788,-802.19,0.00010679,2]
[352297625,1739030969825,-742.6,0.00010679,2]
[352297626,1739030969862,-1336.88,0.00010679,2]
[352297627,1739030969899,-1153.22,0.00010679,2]
[352297628,1739030969935,-1569.86,0.00010679,2]
[352297629,1739030969972,-2381.36,0.00010679,2]
[352297630,1739030970007,-1481.74,0.00010679,2]
[352297631,1739030970041,-1482.26,0.00010679,2]
[352297632,1739030970077,-613.99,0.0001068,2]
[352297633,1739030970111,-500.0,0.0001068,2]
[352297634,1739030970146,-485.81,0.0001068,2]
[352297635,1739030970180,-500.0,0.0001068,2]
[352297636,1739030970216,-677.68,0.0001068,2]
[352297637,1739030970253,-858.21,0.0001068,2]
[352297638,1739030970289,-1067.51,0.0001068,2]
[352297639,1739030970332,-1791.43,0.0001068,2]
[352297640,1739030970373,-500.0,0.0001068,2]
[352297641,1739030970415,-167.25,0.0001068,2]
[352297642,1739030970455,-1005.42,0.0001068,2]
[352297643,1739030970490,-1557.23,0.0001068,2]
[352297644,1739030970526,-500.0,0.0001068,2]
[352297645,1739030970572,-500.0,0.0001068,2]
[352297646,1739030970610,-786.32,0.0001068,2]
[352297647,1739030970645,-1364.07,0.0001068,2]
[352297648,1739030970681,-500.0,0.0001068,2]
[352297649,1739030970717,-500.0,0.0001068,2]
[352297650,1739030970755,-500.0,0.0001068,2]
[352297651,1739030970791,-1086.9,0.0001068,2]
[352297652,1739030970828,-500.0,0.0001068,2]
[352297653,1739030970862,-666.35,0.0001068,2]
[352297654,1739030970899,-391.97198607,0.0001068,2]
[352297655,1739030970935,-500.0,0.0001068,2]
[352297656,1739030970970,-1801.26,0.0001068,2]
[352297657,1739030971005,-1515.2,0.0001068,2]
[352297658,1739030971039,-170.44,0.0001068,2]
[352297659,1739030971078,-500.0,0.0001068,2]
[352297660,1739030971113,-876.69,0.0001068,2]
[352297661,1739030971147,-500.0,0.0001068,2]
[352297662,1739030971182,-500.0,0.0001068,2]
[352297663,1739030971218,-1669.42,0.0001068,2]
[352297664,1739030971255,-500.0,0.0001068,2]
[352297665,1739030971289,-500.0,0.0001068,2]
[352297666,1739030971363,-889.35,0.0001068,2]
[352297667,1739030971401,-500.0,0.00010681,2]
[352297668,1739030971438,-792.61,0.00010681,2]
[352297669,1739030971473,-1021.29,0.00010681,2]
[352297670,1739030971510,-552.47,0.00010681,2]
[352297671,1739030971543,-584.29,0.00010681,2]
[352297672,1739030971578,-1431.9,0.00010681,2]
[352297673,1739030971614,-3456.55,0.00010681,2]
[352297674,1739030971648,-500.0,0.00010681,2]
[352297675,1739030971682,-693.9,0.00010681,2]
[352297676,1739030971715,-982.31,0.00010681,2]
[352297677,1739030971749,-835.82,0.00010681,2]
[352297678,1739030971783,-1141.16,0.00010681,2]
[352297679,1739030971818,-518.36,0.00010681,2]
[352297680,1739030971854,-1000.0,0.00010681,2]
[352297681,1739030971889,-911.43,0.00010681,2]
[352297682,1739030971924,-1096.95,0.00010681,2]
[352297683,1739030971959,-1291.89,0.00010681,2]
[352297684,1739030971993,-1209.71,0.00010681,2]
[352297685,1739030972026,-715.31,0.00010681,2]
[352297686,1739030972061,-500.0,0.00010682,2]
[352297687,1739030972096,-602.05,0.00010682,2]
[352297688,1739030972131,-500.0,0.00010682,2]
[352297689,1739030972164,-500.0,0.00010682,2]
[352297690,1739030972199,-621.69,0.00010682,2]
[352297691,1739030972234,-642.07,0.00010682,2]
[352297692,1739030972267,-898.44,0.00010682,2]
[352297693,1739030972301,-774.39,0.00010682,2]
[352297694,1739030972335,-500.0,0.00010682,2]
[352297695,1739030972370,-200.0,0.000107,3]
[352297696,1739030972403,-200.0,0.000108,3]
[352297697,1739030972437,-802.19,0.00010816,2]
[352297698,1739030972477,-742.6,0.00010816,2]
[352297699,1739030972511,-1336.88,0.00010816,2]
[352297700,1739030972546,-1153.22,0.00010816,2]
[352297701,1739030972581,-1569.86,0.00010816,2]
[352297702,1739030972614,-2381.36,0.00010816,2]
[352297703,1739030972648,-1481.74,0.00010816,2]
[352297704,1739030972682,-1482.26,0.00010816,2]
[352297705,1739030972716,-500.0,0.00010817,2]
[352297706,1739030972750,-500.0,0.00010817,2]
[352297707,1739030972784,-677.68,0.00010817,2]
[352297708,1739030972818,-858.21,0.00010817,2]
[352297709,1739030972855,-1067.51,0.00010817,2]
[352297710,1739030972891,-1791.43,0.00010817,2]
[352297711,1739030972925,-500.0,0.00010817,2]
[352297712,1739030972959,-1005.42,0.00010817,2]
[352297713,1739030972995,-1557.23,0.00010817,2]
[352297714,1739030973029,-500.0,0.00010817,2]
[352297715,1739030973062,-500.0,0.00010817,2]
[352297716,1739030973095,-786.32,0.00010817,2]
[352297717,1739030973130,-1364.07,0.00010817,2]
[352297718,1739030973165,-500.0,0.00010817,2]
[352297719,1739030973199,-500.0,0.00010817,2]
[352297720,1739030973236,-1086.9,0.00010817,2]
[352297721,1739030973274,-500.0,0.00010817,2]
[352297722,1739030973313,-666.35,0.00010817,2]
[352297723,1739030973351,-339.7723637,0.00010817,2]
[352297724,1739030973392,-1801.26,0.00010817,2]
[352297725,1739030973431,-1515.2,0.00010817,2]
[352297726,1739030973470,-379.30903885,0.00010817,2]
[352297727,1739030973509,-876.69,0.00010817,2]
[352297728,1739030973548,-500.0,0.00010817,2]
[352297729,1739030973585,-500.0,0.00010817,2]
[352297730,1739030973623,-1669.42,0.00010817,2]
[352297731,1739030973662,-500.0,0.00010817,2]
[352297732,1739030973700,-500.0,0.00010817,2]
[352297733,1739030973737,-889.35,0.00010817,2]
[352297734,1739030973774,-500.0,0.00010818,2]
[352297735,1739030973811,-792.61,0.00010818,2]
[352297736,1739030973849,-1021.29,0.00010818,2]
[352297737,1739030973885,-552.47,0.00010818,2]
[352297738,1739030973922,-584.29,0.00010818,2]
[352297739,1739030973960,-809.9890458,0.00010818,2]
[352297740,1739031003431,153.0,0.00010818,30]
[352297741,1739031003691,153.0,0.0001175,30]
[352297742,1739031003988,153.0,0.00012682,30]
[352297748,1739031036583,-585.01,0.00010133,2]
[352297749,1739031036593,-500.0,0.00010134,2]
[352297750,1739031036602,-500.0,0.00010134,2]
[352297751,1739031036612,-500.0,0.00010134,2]
[352297752,1739031036621,-699.7,0.00010134,2]
[352297753,1739031036631,-500.0,0.00010134,2]
[352297754,1739031036641,-671.89,0.00010134,2]
[352297755,1739031036650,-300.0,0.00010267,2]
[352297756,1739031036659,-766.87,0.00010268,2]
[352297757,1739031036669,-647.59,0.00010268,2]
[352297758,1739031036678,-774.44,0.00010268,2]
[352297759,1739031036687,-1623.4,0.00010268,2]
[352297760,1739031036697,-383.15412796,0.00010269,2]
[352297761,1739031036706,-500.0,0.00010269,2]
[352297762,1739031036715,-500.0,0.00010269,2]
[352297763,1739031036724,-1806.51,0.00010269,2]
[352297764,1739031036734,-500.0,0.00010269,2]
[352297765,1739031036743,-500.0,0.00010269,2]
[352297766,1739031036752,-540.48161761,0.00010269,2]
[352297767,1739031036762,-500.0,0.00010269,2]
[352297768,1739031036771,-500.0,0.00010269,2]
[352297769,1739031036781,-500.0,0.00010269,2]
[352297770,1739031036791,-584.56770077,0.00010269,2]
[352297771,1739031036804,-500.0,0.00010269,2]
[352297772,1739031036814,-500.0,0.00010269,2]
[352297773,1739031036823,-500.0,0.00010269,2]
[352297774,1739031036833,-500.0,0.00010269,2]
[352297776,1739031036842,-500.0,0.00010269,2]
[352297778,1739031036852,-500.0,0.00010269,2]
[352297780,1739031036862,-500.0,0.00010269,2]
[352297782,1739031036871,-501.59665778,0.00010269,2]
[352297784,1739031036880,-517.55,0.00010269,2]
[352297786,1739031036889,-500.0,0.00010269,2]
[352297788,1739031036899,-500.0,0.00010269,2]
[352297790,1739031036908,-500.0,0.00010269,2]
[352297792,1739031036917,-512.67502663,0.00010269,2]
[352297794,1739031036928,-880.6,0.00010269,2]
[352297796,1739031036937,-500.0,0.00010269,2]
[352297798,1739031036947,-511.25292456,0.00010269,2]
[352297800,1739031036956,-1005.34,0.00010269,2]
[352297802,1739031036965,-500.0,0.00010269,2]
[352297804,1739031036974,-1201.43,0.00010269,2]
[352297806,1739031036983,-500.0,0.00010269,2]
[352297808,1739031036992,-500.0,0.00010269,2]
[352297810,1739031037001,-500.0,0.00010269,2]
[352297812,1739031037011,-501.80803662,0.00010269,2]
[352297813,1739031037020,-578.49,0.00010269,2]
[352297816,1739031037030,-500.0,0.00010269,2]
[352297818,1739031037041,-505.13054003,0.00010269,2]
[352297819,1739031037050,-500.0,0.00010269,2]
[352297822,1739031037059,-509.32367822,0.00010269,2]
[352297823,1739031037070,-500.0,0.00010269,2]
[352297825,1739031037080,-500.0,0.00010269,2]
[352297827,1739031037089,-500.0,0.00010269,2]
[352297829,1739031037099,-1025.47,0.00010269,2]
[352297831,1739031037108,-500.0,0.00010269,2]
[352297833,1739031037117,-500.0,0.00010269,2]
[352297835,1739031037126,-504.63821863,0.00010269,2]
[352297837,1739031037136,-500.0,0.00010269,2]
[352297839,1739031037145,-500.0,0.00010269,2]
[352297841,1739031037155,-500.0,0.00010269,2]
[352297843,1739031037164,-957.28,0.00010269,2]
[352297845,1739031037174,-500.0,0.00010269,2]
[352297847,1739031037184,-500.0,0.00010269,2]
[352297849,1739031037193,-500.0,0.00010269,2]
[352297851,1739031037202,-500.0,0.00010269,2]
[352297853,1739031037212,-500.0,0.00010269,2]
[352297855,1739031037221,-500.0,0.00010269,2]
[352297857,1739031037231,-5066.54,0.00010269,2]
[352297859,1739031037240,-378.99887363,0.00010269,2]
[352297861,1739031037249,-339.32455029,0.00010269,2]
[352297863,1739031037258,-500.0,0.00010269,2]
[352297865,1739031037268,-1008.29,0.00010269,2]
[352297867,1739031037277,-500.0,0.00010269,2]
[352297869,1739031037287,-500.0,0.00010269,2]
[352297871,1739031037296,-500.0,0.00010269,2]
[352297873,1739031037306,-500.0,0.00010269,2]
[352297875,1739031037315,-500.0,0.00010269,2]
[352297877,1739031037324,-882.76,0.00010269,2]
[352297879,1739031037333,-500.0,0.00010269,2]
[352297882,1739031037342,-500.0,0.00010269,2]
[352297884,1739031037352,-500.0,0.00010269,2]
[352297886,1739031037362,-500.0,0.00010269,2]
[352297888,1739031037374,-585.01,0.0001027,2]
[352297890,1739031037383,-506.24,0.00010271,2]
[352297892,1739031037392,-699.7,0.00010271,2]
[352297894,1739031037402,-500.0,0.00010271,2]
[352297896,1739031037412,-671.89,0.00010271,2]
[352297898,1739031037421,-766.87,0.00010405,2]
[352297900,1739031037431,-647.59,0.00010405,2]
[352297902,1739031037441,-774.44,0.00010405,2]
[352297904,1739031037451,-1623.4,0.00010405,2]
[352297906,1739031037462,-500.0,0.00010406,2]
[352297908,1739031037472,-500.0,0.00010406,2]
[352297910,1739031037482,-1806.51,0.00010406,2]
[352297912,1739031037491,-413.19,0.00010406,2]
[352297914,1739031037501,-500.0,0.00010406,2]
[352297915,1739031037510,-263.69,0.00010406,2]
[352297917,1739031037519,-306.5,0.00010406,2]
[352297919,1739031037528,-644.4,0.00010406,2]
[352297921,1739031037538,-517.55,0.00010406,2]
[352297923,1739031037548,-880.6,0.00010406,2]
[352297925,1739031037557,-1005.34,0.00010406,2]
[352297928,1739031037566,-1201.43,0.00010406,2]
[352297929,1739031037578,-500.0,0.00010406,2]
[352297931,1739031037587,-578.49,0.00010406,2]
[352297933,1739031037597,-500.0,0.00010406,2]
[352297935,1739031037606,-1025.47,0.00010406,2]
[352297937,1739031037615,-500.0,0.00010406,2]
[352297939,1739031037625,-957.28,0.00010406,2]
[352297940,1739031037634,-500.0,0.00010406,2]
[352297942,1739031037644,-500.0,0.00010406,2]
[352297944,1739031037654,-500.0,0.00010406,2]
[352297946,1739031037663,-5066.54,0.00010406,2]
[352297948,1739031037672,-1008.29,0.00010406,2]
[352297950,1739031037681,-500.0,0.00010406,2]
[352297952,1739031037691,-560.76,0.00010406,2]
[352297954,1739031037700,-882.76,0.00010406,2]
[352297956,1739031037710,-500.0,0.00010406,2]
[352297958,1739031037719,-585.01,0.00010407,2]
[352297960,1739031037729,-699.7,0.00010408,2]
[352297962,1739031037738,-500.0,0.00010408,2]
[352297964,1739031037747,-671.89,0.00010408,2]
[352297966,1739031037757,-766.87,0.00010542,2]
[352297968,1739031037766,-647.59,0.00010542,2]
[352297970,1739031037775,-774.44,0.00010542,2]
[352297972,1739031037784,-1623.4,0.00010542,2]
[352297974,1739031037796,-636.58139884,0.00010543,2]
[352297976,1739031037805,-500.0,0.00010543,2]
[352297978,1739031037815,-1806.51,0.00010543,2]
[352297980,1739031037824,-517.55,0.00010543,2]
[352297982,1739031037834,-880.6,0.00010543,2]
[352297984,1739031037843,-1005.34,0.00010543,2]
[352297986,1739031037853,-1201.43,0.00010543,2]
[352297988,1739031037862,-500.0,0.00010543,2]
[352297990,1739031037872,-578.49,0.00010543,2]
[352297992,1739031037882,-500.0,0.00010543,2]
[352297994,1739031037891,-1025.47,0.00010543,2]
[352297996,1739031037901,-500.0,0.00010543,2]
[352297998,1739031037911,-957.28,0.00010543,2]
[352298000,1739031037921,-500.0,0.00010543,2]
[352298002,1739031037930,-5066.54,0.00010543,2]
[352298004,1739031037939,-1008.29,0.00010543,2]
[352298006,1739031037948,-500.0,0.00010543,2]
[352298008,1739031037958,-882.76,0.00010543,2]
[352298011,1739031037968,-500.0,0.00010543,2]
[352298013,1739031037977,-585.01,0.00010544,2]
[352298016,1739031037988,-699.7,0.00010545,2]
[352298018,1739031037998,-500.0,0.00010545,2]
[352298020,1739031038007,-671.89,0.00010545,2]
[352298022,1739031038016,-766.87,0.00010679,2]
[352298024,1739031038025,-647.59,0.00010679,2]
[352298026,1739031038034,-774.44,0.00010679,2]
[352298028,1739031038045,-1623.4,0.00010679,2]
[352298030,1739031038055,-500.0,0.0001068,2]
[352298032,1739031038064,-1806.51,0.0001068,2]
[352298034,1739031038074,-517.55,0.0001068,2]
[352298036,1739031038083,-880.6,0.0001068,2]
[352298038,1739031038093,-1005.34,0.0001068,2]
[352298040,1739031038102,-1201.43,0.0001068,2]
[352298042,1739031038111,-500.0,0.0001068,2]
[352298044,1739031038120,-578.49,0.0001068,2]
[352298046,1739031038129,-500.0,0.0001068,2]
[352298047,1739031038139,-1025.47,0.0001068,2]
[352298048,1739031038148,-500.0,0.0001068,2]
[352298049,1739031038157,-957.28,0.0001068,2]
[352298050,1739031038171,-500.0,0.0001068,2]
[352298051,1739031038181,-5066.54,0.0001068,2]
[352298052,1739031038191,-1008.29,0.0001068,2]
[352298053,1739031038200,-500.0,0.0001068,2]
[352298054,1739031038210,-882.76,0.0001068,2]
[352298055,1739031038219,-500.0,0.0001068,2]
[352298056,1739031038229,-585.01,0.00010681,2]
[352298072,1739031038496,-699.7,0.00010682,2]
[352298074,1739031038506,-500.0,0.00010682,2]
[352298076,1739031038515,-671.89,0.00010682,2]
[352298078,1739031038525,-152.0,0.00010797,3]
[352298080,1739031038534,-766.87,0.00010816,2]
[352298082,1739031038544,-647.59,0.00010816,2]
[352298084,1739031038553,-774.44,0.00010816,2]
[352298086,1739031038563,-1623.4,0.00010816,2]
[352298088,1739031038572,-500.0,0.00010817,2]
[352298090,1739031038582,-1806.51,0.00010817,2]
[352298091,1739031038591,-517.55,0.00010817,2]
[352298093,1739031038600,-880.6,0.00010817,2]
[352298095,1739031038610,-1005.34,0.00010817,2]
[352298097,1739031038619,-1201.43,0.00010817,2]
[352298099,1739031038628,-500.0,0.00010817,2]
[352298102,1739031038638,-578.49,0.00010817,2]
[352298103,1739031038647,-500.0,0.00010817,2]